Cogmind - Beta 15 @@@ ROGUE MODE // 2025.10.19 @ 05:12:23 Player: Sangros Result: Destroyed by Y-45 Defender with Beam Rifle Performance ------------- Evolutions (1) 500 Regions Visited (2) 400 Robots Destroyed (5) 25 Value Destroyed (167) 167 Prototype IDs (0) 0 Alien Tech Used (0) 0 Bonus (0) 0 TOTAL SCORE: 1092 Bonus ------- None Cogmind --------- Core Integrity 0/400 Matter 270/300 Energy 66/100 System Corruption 0% Temperature Cool (38) Movement Treading (160) Location -9/Materials Parts ------- > --- POWER (2) -------- (None) > --- PROPULSION (2) --- Light Treads > --- UTILITY (2) ------ Disposable Heat Sink Visual Processing Unit > --- WEAPON (3) ------- (None) > --- INVENTORY (5) ---- Targeting Computer Targeting Computer Peak State ------------ > --- POWER ------------ Ion Engine Ion Engine > --- PROPULSION ------- Wheel Compact Wheel > --- UTILITY ---------- Small Storage Unit Targeting Computer > --- WEAPON ----------- Medium Laser Small Laser Light Assault Rifle > --- INVENTORY -------- Light Treads Light Treads Hover Unit Visual Processing Unit Targeting Computer Targeting Computer [Rating: 9] Favorites ----------- Power Ion Engine Engine Ion Engine Propulsion Wheel Treads Light Treads Wheel Wheel Utility Small Storage Unit Device Disposable Heat Sink Storage Small Storage Unit Processor Targeting Computer Weapon Medium Laser Energy Gun Medium Laser Ballistic Gun Light Assault Rifle Build | -11 -10 -9 ------- Run | Yrd Mat Mat Slots Evolved 2 | . . 2 Power 1 | . . 1 Propulsion . | . . . Utility . | . . . Weapon 1 | . . 1 Parts Attached 13 | 7 1 5 Power 2 | 1 . 1 Engine 2 | 1 . 1 Core . | . . . Reactor . | . . . Propulsion 4 | 2 . 2 Treads 1 | . . 1 Leg . | . . . Wheel 2 | 2 . . Hover 1 | . . 1 Flight . | . . . Utility 4 | 1 1 2 Device 1 | . . 1 Storage 1 | 1 . . Processor 2 | . 1 1 Hackware . | . . . Protection . | . . . Artifact . | . . . Weapon 3 | 3 . . Energy Gun 2 | 2 . . Energy Cannon . | . . . Ballistic Gun 1 | 1 . . Ballistic Cannon . | . . . Launcher . | . . . Special Weapon . | . . . Impact Weapon . | . . . Slashing Weapon . | . . . Piercing Weapon . | . . . Special Melee Weapon . | . . . Unidentified Prototypes . | . . . Parts Lost 10 | . . 10 Power 2 | . . 2 Propulsion 3 | . . 3 Utility 2 | . . 2 Weapon 3 | . . 3 Highest Loss Streak 10 | . . 10 To Critical Strikes . | . . . Average Backups 5 | 1 7 6 Power . | . 1 . Propulsion 2 | 1 3 2 Utility 2 | . 2 3 Weapon . | . 1 . Tool/Special . | . . . Unused Backups 5 | . 2 3 Power . | . . . Propulsion 3 | . 2 1 Utility 2 | . . 2 Weapon . | . . . Tool/Special . | . . . Average Slot Usage (%) 87 | . 97 78 Engine 15 | . 14 16 Wheel 21 | . 28 16 Storage 11 | . 14 8 Processor 9 | . 12 8 Energy Gun 15 | . 14 17 Ballistic Gun 11 | . 14 8 Peak Build Rating 9 | 6 7 9 Average Rating 6 | 3 6 7 On Entrance 4 | . 6 7 Naked Turns 19 | . . 19 Heaviest Build 19 | 13 13 19 Greatest Support 26 | 26 26 26 Greatest Overweight (x) . | . . . Average Overweight (x) . | . . . Largest Inventory Capacity 8 | 8 8 8 Average Capacity 7 | 6 8 7 Most Carried 8 | 7 8 7 Average Carried 6 | 2 7 6 Final Capacity 8 | 8 8 5 Final Carried 8 | 6 8 2 Class Distribution -------------------- 63% | Mutant 36% | Gunner Dominant Class ---------------- Mutant | -10/Materials Gunner | -9/Materials Resources | -11 -10 -9 ----------- Run | Yrd Mat Mat Matter Collected 355 | 194 64 97 Remotely . | . . . Salvage Created 208 | . 64 144 Parts 12 | . 4 8 Haulers Intercepted . | . . . Recyclers Shooed . | . . . Parts Field Recycled . | . . . Retrieved Matter . | . . . Parts Self-Destructed . | . . . Prevented . | . . . Kills | -11 -10 -9 ------- Run | Yrd Mat Mat Combat Hostiles Destroyed 4 | . 1 3 Guns 4 | . 1 3 Classes Destroyed 3 | . 2 1 Watcher 1 | . 1 . Grunt 3 | . 1 2 Brawler 1 | . . 1 Best Kill Streak 3 | . 1 3 Combat Bots Only 3 | . 1 3 Max Kills in Single Turn 1 | . 1 1 Gunslinging . | . . . Exploded . | . . . Melee . | . . . Uniques/NPCs Destroyed . | . . . Combat | -11 -10 -9 -------- Run | Yrd Mat Mat Hostile Shots Fired 86 | . 8 78 Missed 18 | . 3 15 Hits 68 | . 5 63 Projectile 68 | . 5 63 Critical Strikes 1 | . . 1 Damage Taken 873 | . 54 819 Core 438 | . 24 414 Absorbed by Shields . | . . . Core Remaining (%) 95 | 100 90 . Volleys Fired 27 | . 12 15 Largest 3 | . 2 3 Hottest 110 | . 70 110 Shots Fired 53 | . 24 29 Gun 53 | . 24 29 Cannon . | . . . Launcher . | . . . Special . | . . . Kinetic 18 | . 12 6 Thermal 35 | . 12 23 Explosive . | . . . Electromagnetic . | . . . Robot Hit Streak 21 | . 13 21 Robot Miss Streak 3 | . 3 2 Penetration Max . | . . . Secondary Targets . | . . . Shots Hit Robots 34 | . 16 18 Core Hits 13 | . 5 8 Critical Kills . | . . . Critical Parts Destroyed . | . . . Critical Strikes 1 | . 1 . Burn 1 | . 1 . Melee Attacks . | . . . Impact . | . . . Slashing . | . . . Piercing . | . . . Sneak Attacks . | . . . Combat Hostiles . | . . . Follow-up Attacks . | . . . Damage Inflicted 387 | . 183 204 Guns 387 | . 183 204 Cannons . | . . . Explosions . | . . . Melee . | . . . Ramming . | . . . Kinetic 88 | . 58 30 Thermal 299 | . 125 174 Explosive . | . . . Electromagnetic . | . . . Impact . | . . . Slashing . | . . . Piercing . | . . . Highest Corruption . | . . . Average Corruption . | . . . Corruption Purged . | . . . Corruption Blocked . | . . . Overload Shots . | . . . Overflow Damage . | . . . Projectiles . | . . . Explosions . | . . . Melee . | . . . Knockbacks . | . . . Impact . | . . . Kinetic . | . . . Secondary . | . . . Self-Inflicted Damage . | . . . Shots . | . . . Rammed . | . . . Targets Rammed . | . . . Kicked . | . . . Crushed . | . . . Highest Temperature 532 | . 150 532 Average Temperature 219 | . 65 323 Received Heat Transfer 405 | . 30 375 Effects 17 | . . 17 Shutdowns 3 | . . 3 Energy Bleed 1 | . . 1 Interference 3 | . . 3 Matter Decay 2 | . . 2 Short Circuit 1 | . . 1 Damage (minor) 1 | . . 1 Damage (major) 6 | . . 6 Siege Activations . | . . . Martial Activations . | . . . Shielding Activations . | . . . Robots Disrupted . | . . . Combat Hostiles . | . . . Robots Corrupted . | . . . Combat Hostiles . | . . . Parts Fried . | . . . Impact Corruptions . | . . . Robots Melted . | . . . Combat Hostiles . | . . . Parts Melted 2 | . 2 . Heat Transferred 903 | . 444 459 Parts Sabotaged . | . . . Parts Stolen . | . . . Parts Stripped . | . . . Power Chain Reactions . | . . . Alert | -11 -10 -9 ------- Run | Yrd Mat Mat Maximum Alert Level . | . . . Low Security (%) 100 | 100 100 100 Level 1 . | . . . Level 2 . | . . . Level 3 . | . . . Level 4 . | . . . Level 5 . | . . . High Security . | . . . Max Security . | . . . Peak Influence 70 | . 30 70 Initial 8 | . . 8 Average 6 | . 4 11 Influence Increases 117 | . 37 80 Destroy 0b10 Robot/C 80 | . 20 60 Destroy 0b10 Robot/NC 5 | . 5 . Destroy Leader 32 | . 12 20 Influence Decreases 117 | . 17 100 Entered New Map 12 | . . 12 Time Decay 45 | . 17 28 Lost Part 60 | . . 60 Squads Dispatched 2 | . 1 1 Investigation 1 | . . 1 Extermination . | . . . Reinforcement 1 | . 1 . Assault . | . . . Garrison . | . . . Intercept . | . . . Searches Triggered . | . . . Construction Impeded . | . . . Haulers Reinforced . | . . . Active Scanning Responses . | . . . Cargo Convoy Interrupts . | . . . Stealth | -11 -10 -9 --------- Run | Yrd Mat Mat Distress Signals . | . . . Communications Jammed . | . . . Distress Signals . | . . . Times Spotted 10 | . 3 7 Peak Tracking Total 6 | . 1 6 Tactical Retreats . | . . . Traps | -11 -10 -9 ------- Run | Yrd Mat Mat Traps Triggered 1 | . . 1 Indirectly . | . . . Trap Hack Attempts . | . . . Triggered . | . . . Disarmed . | . . . Reprogrammed . | . . . Reused . | . . . Traps Extracted . | . . . Installed . | . . . Triggered . | . . . Machines | -11 -10 -9 ---------- Run | Yrd Mat Mat Machines Disabled . | . . . Max in Single Turn . | . . . Machines Repaired . | . . . Machines Dismantled . | . . . Machines Sabotaged . | . . . Overloaded Fab Kills . | . . . Hacking | -11 -10 -9 --------- Run | Yrd Mat Mat Machines Accessed . | . . . Terminals . | . . . Fabricators . | . . . Repair Stations . | . . . Recycling Units . | . . . Scanalyzers . | . . . Garrison Access . | . . . Total Hacks . | . . . Successful . | . . . Failed . | . . . Catastrophic . | . . . Database Lockouts . | . . . Manual . | . . . Terminals . | . . . Fabricators . | . . . Repair Stations . | . . . Recycling Units . | . . . Scanalyzers . | . . . Garrison Access . | . . . Terminal Hacks . | . . . Fabricator Hacks . | . . . Repair Station Hacks . | . . . Recycling Unit Hacks . | . . . Scanalyzer . | . . . Garrison Access Hacks . | . . . Unauthorized Hacks . | . . . Terminals . | . . . Fabricators . | . . . Repair Stations . | . . . Recycling Units . | . . . Scanalyzers . | . . . Garrison Access . | . . . Data Cores Recovered . | . . . Used . | . . . Hacking Detections . | . . . Full Trace Events . | . . . Feedback Events . | . . . Feedback Blocked . | . . . Robot Schematics Acquired . | . . . Robots Built . | . . . Authchips . | . . . Time . | . . . Total Robot Build Rating . | . . . Part Schematics Acquired . | . . . Parts Built . | . . . Authchips . | . . . Time . | . . . Total Part Build Rating . | . . . Parts Repaired . | . . . Time . | . . . Parts Recycled . | . . . Recycled Matter . | . . . Retrieved Matter . | . . . Retrieved Components . | . . . Parts Scanalyzed . | . . . Part Schematics Acquired . | . . . Parts Damaged . | . . . Bothacking | -11 -10 -9 ------------ Run | Yrd Mat Mat Used RIF Installer . | . . . Robots Hacked . | . . . Non-combat . | . . . Combat . | . . . Robot Hacks Applied . | . . . Relay Couplers Released . | . . . Fabnet Peak Effective % . | . . . Robots Rewired . | . . . Allies Hacked . | . . . Hacks Repelled . | . . . Allies | -11 -10 -9 -------- Run | Yrd Mat Mat Total Allies . | . . . Largest Group . | . . . Highest-Rated Group . | . . . Highest-Rated Ally . | . . . Total Orders . | . . . Ally Attacks . | . . . Total Damage . | . . . Kills . | . . . Allies Corrupted . | . . . Allies Melted . | . . . Intel | -11 -10 -9 ------- Run | Yrd Mat Mat Active Infowar (turns) 4 | . . 4 Optics 4 | . . 4 Robot Analysis Total . | . . . Derelict Logs Recovered . | . . . Drone Launches . | . . . Drone Recoveries . | . . . Exploration | -11 -10 -9 ------------- Run | Yrd Mat Mat Turns Passed 339 | 73 134 132 Spaces Moved 253 | 41 105 107 Core 33 | 3 . 30 Treads 2 | . . 2 Legs . | . . . Wheels 218 | 38 105 75 Hover . | . . . Flight . | . . . Fastest Speed 50 | 50 90 50 Average Speed 85 | 87 90 80 Slowest Speed 160 | 90 90 160 Overloaded Moves . | . . . Propulsion Burnouts . | . . . Robots Hopped . | . . . Potential Cave-ins . | . . . Cave-ins Triggered . | . . . Exploration Rate (%) 12 | 4 22 11 Regions Visited 2 Branch Regions . Pre-discovered Areas . | . . . Known Exits Taken . | . . . Unknown Exits Taken 2 | 1 1 . Scrap Searched . | . . . Spaces Dug . | . . . Terrain Destroyed . | . . . Melee . | . . . Projectile . | . . . AOE . | . . . Terrain Rammed . | . . . Walls Destroyed . | . . . Machines Disabled . | . . . Actions | -11 -10 -9 --------- Run | Yrd Mat Mat Total 329 | 77 123 129 Wait 18 | 18 . . Move 251 | 40 104 107 Hop . | . . . Pick Up 17 | 12 4 1 Fast Attach 2 | . 1 1 Attach 11 | 6 . 5 Detach . | . . . Swap 1 | 1 . . Drop 2 | . 2 . Fire 27 | . 12 15 Melee . | . . . Ram . | . . . Kick . | . . . Crush . | . . . Escape Stasis . | . . . Rewire . | . . . Trap . | . . . Miscellaneous . | . . . Route ------- -11/Scrapyard -10/Materials -9/Materials History --------- Turn | Location | Event 40 | -11/Scrapyard | Discovered new exit (range 16) 74 | -11/Scrapyard | Entered Materials 197 | -10/Materials | Discovered new exit (range 10) 208 | -10/Materials | Entered another Materials area 208 | -9/Materials | Evolved 2 slots: Power x1, Weapon x1 321 | -9/Materials | Core integrity fell below 50% 327 | -9/Materials | Core integrity fell below 20% 340 | -9/Materials | Destroyed by Y-45 Defender with Beam Rifle Last Messages --------------- Overheating: Matter decay (-29). Ion Engine destroyed. Med. Laser destroyed. R-06 Scavenger collects Ion Engine. R-06 Scavenger collects Aluminum Leg. Ion Engine destroyed. Overheating: Energy bleed (-25). Sml. Storage Unit destroyed. Sml. Laser destroyed. Atomic Centrifuge disabled. R-06 Scavenger collects Lgt. Treads. Critical hit (Burn: +37). R-06 Scavenger suffers critical hit (Destroy). R-06 Scavenger destroyed. R-06 Scavenger collects Com. Wheel. Acquired Hover Unit. Hover Unit destroyed. Acquired 84 matter. R-06 Scavenger collects Ion Engine. Acquired 13 matter. Map ----- +----------------------------------------------------+ | ?????????????????????????????????????????????????? | | ?????????????????????????????????????????????????? | | ?????????????????????????????????????????????????? | | ?????????????????????????????????????????????????? | | ?????????????????????????????????????????????????? | | ?????????????????????????????????????????????????? | | ?????????????????????????????????????????????????? | | ?????????????????????????????????????????????????? | | ?????????????????????????????????????????????????? | | ??????????????? ?????????????????????????????????? | | ??????????????? ?????????????????????????????????? | | ??????????????? ?????????????????????????????????? | | ??????????????? ?????????????????????????????????? | | ??????????????? ?????????????????#######?????????? | | ??????????????? ????????????????? ?????????? | | ??????????????? ?????????????#### ?????????? | | ##????????????# #???????????? #? "????????? | | ????????????# #??????????? #? "????????" | | # ????????????# #??????????? #? ????????"" | | # ????????????# #??????????? !|?? ??????? | | # ????????????# #??????????? %??? ??????? ?? | | # ????????????# #??????????? ???? ?????? #??? | | # #####+####### #####+######+######+####### #??? | | # u um #??? | | + #??? | | # @ YY #??? | | # ###+#############+######+######/###########??? | | # # #?????????????T ??# %% #??????? | | # # """""#????????????? ??# % * #??????? | | # # """""#???????????? ""?# #??????? | | ##### """""#????????????= ""?# = #??????? | | ????# """""#???????????# """# """ "" #??????? | | ????# """""????????????# # """ """ #??????? | | ????# """""????????????######## """ """ +??????? | | ????# """""???????????????????# #??????? | | ????# #??????????????????###########??????? | | ????##########???????????????????????????????????? | | ?????????????????????????????????????????????????? | | ?????????????????????????????????????????????????? | | ?????????????????????????????????????????????????? | | ?????????????????????????????????????????????????? | | ?????????????????????????????????????????????????? | | ?????????????????????????????????????????????????? | | ?????????????????????????????????????????????????? | | ?????????????????????????????????????????????????? | | ?????????????????????????????????????????????????? | | ?????????????????????????????????????????????????? | | ?????????????????????????????????????????????????? | | ?????????????????????????????????????????????????? | | ?????????????????????????????????????????????????? | +----------------------------------------------------+ Best States ------------- Heat Dissipation 28 Coolant Potential 50 Energy Generation 15 Energy Capacity 400 Matter Stores 300 Matter Capacity 300 Sight Range 18 Terrain Scan Density 10 Evasion (%) 50 Targeting Accuracy 5 Recoil Reduction 1 Item Schematics ----------------- None Robot Schematics ------------------ None Fabricated ------------ Nothing Repaired ---------- Nothing Alien Tech Used ----------------- None Achievements -------------- Crack Shot Uninvited Guest Challenges ------------ None Game ------ Seed SystemWaveLauncher Manual? 0 Play Time 00:15:45 Cumulative 1.9 hours Start 2025.10.19 @ 04:58:39 End 2025.10.19 @ 05:12:23 Sessions 1 Manual Loads 0 Difficulty Rogue Special Mode None Game No. 5 Rogue 5 Adventurer 0 Explorer 0 Win Type - Total 0 Types 0/0/0/0/0/0/0/0/0/0 Lore% 0 Gallery% 3 Achievement% 2 Wizard Run 0 Options --------- Layout 1 ASCII 0 Keyboard 0 Movement Mouse Keybinds 0 Fullscreen 1 Font 24/Smallcaps Map View 50x35 Zoom Use 0% Tactical HUD 0 Map Filters NONE Filters NONE Steam 1 RUN: 5f30440a-a7df-4acf-b420-dcfabdb0f647